[Event "Live Chess"]
[Site "Chess.com"]
[Date "2024.06.02"]
[Round "-"]
[White "elis06"]
[Black "juniortay"]
[Result "1-0"]
[WhiteElo "2339"]
[BlackElo "2355"]
[TimeControl "300"]
[EndTime "4:29:59 PDT"]
[Termination "elis06 won by resignation"]

1. e4 {[%clk 0:04:57.9]} 1... e5 {[%clk 0:04:59.1]} 2. Nf3 {[%clk 0:04:56.9]}
2... Nf6 {[%clk 0:04:58.2]} 3. Nxe5 {[%clk 0:04:50.8]} 3... Nc6 {[%clk
0:04:57.5]} 4. Nxc6 {[%clk 0:04:48]} 4... dxc6 {[%clk 0:04:56.6]} 5. d3 {[%clk
0:04:45.4]} 5... Bc5 {[%clk 0:04:55.7]} 6. Be2 {[%clk 0:04:40]} 6... h5 {[%clk
0:04:54.5]} 7. h3 {[%clk 0:04:34.9]} 7... Qe7 {[%clk 0:04:51]} 8. c3 {[%clk
0:04:33.5]} 8... Bb6 {[%clk 0:04:49.6]} 9. Bf4 {[%clk 0:04:27.5]} 9... Be6
{[%clk 0:04:46.7]} 10. Nd2 {[%clk 0:04:26.1]} 10... O-O-O {[%clk 0:04:45.6]} 11.
Qc2 {[%clk 0:04:24.4]} 11... c5 {[%clk 0:04:43.3]} 12. O-O-O {[%clk 0:04:21.4]}
12... Nd7 {[%clk 0:04:38.6]} 13. Kb1 {[%clk 0:04:18.9]} 13... g5 {[%clk
0:04:36.3]} 14. Be3 {[%clk 0:04:17.5]} 14... f6 {[%clk 0:04:35]} 15. f4 {[%clk
0:04:14.3]} 15... gxf4 {[%clk 0:04:33.4]} 16. Bxf4 {[%clk 0:04:14.2]} 16... Ne5
{[%clk 0:04:32.1]} 17. Nf3 {[%clk 0:04:13.3]} 17... Bf7 {[%clk 0:04:24]} 18.
Nxe5 {[%clk 0:04:10.7]} 18... fxe5 {[%clk 0:04:22.8]} 19. Be3 {[%clk 0:04:09.2]}
19... Qe6 {[%clk 0:04:10.5]} 20. c4 {[%clk 0:04:07.6]} 20... Rd7 {[%clk
0:03:45.6]} 21. g4 {[%clk 0:04:03.1]} 21... Kb8 {[%clk 0:03:32.6]} 22. Rhf1
{[%clk 0:03:58.1]} 22... Rdd8 {[%clk 0:03:26.7]} 23. Bg5 {[%clk 0:03:54]} 23...
Rdg8 {[%clk 0:03:25.1]} 24. Be3 {[%clk 0:03:44.2]} 24... Qd7 {[%clk 0:03:06.7]}
25. Rf5 {[%clk 0:03:35.7]} 25... Be6 {[%clk 0:02:56.8]} 26. Rxe5 {[%clk
0:03:32.3]} 26... hxg4 {[%clk 0:02:55.2]} 27. hxg4 {[%clk 0:03:30.8]} 27... Bxg4
{[%clk 0:02:53.9]} 28. Bxg4 {[%clk 0:03:29.1]} 28... Rxg4 {[%clk 0:02:46.8]} 29.
Bxc5 {[%clk 0:03:09.4]} 29... Bxc5 {[%clk 0:02:45.5]} 30. Rxc5 {[%clk
0:03:08.5]} 30... Qd4 {[%clk 0:02:44.3]} 31. Rd5 {[%clk 0:03:06]} 31... Qe3
{[%clk 0:02:43]} 32. Qd2 {[%clk 0:03:02.2]} 32... Qf3 {[%clk 0:02:35.1]} 33. Rc1
{[%clk 0:02:55.9]} 33... b6 {[%clk 0:02:28.6]} 34. Qc3 {[%clk 0:02:53.4]} 34...
Rhg8 {[%clk 0:02:15.9]} 35. a3 {[%clk 0:02:50.8]} 35... Qe2 {[%clk 0:02:08.4]}
36. Rc2 {[%clk 0:02:46.3]} 36... Rg1+ {[%clk 0:02:04.8]} 37. Ka2 {[%clk
0:02:44.8]} 37... Qd1 {[%clk 0:01:56.6]} 38. c5 {[%clk 0:02:34.5]} 38... R1g6
{[%clk 0:01:16.7]} 39. cxb6 {[%clk 0:02:26.4]} 39... axb6 {[%clk 0:01:16.6]} 40.
Qxc7+ {[%clk 0:02:24]} 40... Ka8 {[%clk 0:01:12.9]} 41. Rd7 {[%clk 0:02:21.9]}
1-0

[Event "Live Chess"]
[Site "Chess.com"]
[Date "2024.06.02"]
[Round "-"]
[White "FlyingChessKestrel13"]
[Black "MagnersCarlsberg2870"]
[Result "1-0"]
[WhiteElo "2080"]
[BlackElo "1775"]
[TimeControl "300"]
[EndTime "4:30:22 PDT"]
[Termination "FlyingChessKestrel13 won by resignation"]

1. e4 {[%clk 0:04:57.6]} 1... e5 {[%clk 0:04:57.9]} 2. Nf3 {[%clk 0:04:56.9]}
2... Nf6 {[%clk 0:04:56.8]} 3. d4 {[%clk 0:04:52.5]} 3... exd4 {[%clk
0:04:49.5]} 4. e5 {[%clk 0:04:51.1]} 4... Ng4 {[%clk 0:04:41.7]} 5. Qxd4 {[%clk
0:04:43.7]} 5... d6 {[%clk 0:04:40.8]} 6. Bg5 {[%clk 0:04:33.8]} 6... Be7 {[%clk
0:04:28.2]} 7. Bxe7 {[%clk 0:04:24.3]} 7... Qxe7 {[%clk 0:04:26.9]} 8. Be2
{[%clk 0:04:20.8]} 8... Nxe5 {[%clk 0:04:24.3]} 9. Nxe5 {[%clk 0:04:19.6]} 9...
Qxe5 {[%clk 0:04:21.8]} 10. Qxe5+ {[%clk 0:04:19.2]} 10... dxe5 {[%clk
0:04:20.7]} 11. O-O {[%clk 0:04:18.3]} 11... Nc6 {[%clk 0:04:17.5]} 12. Nc3
{[%clk 0:04:17.5]} 12... Nd4 {[%clk 0:04:11.5]} 13. Bc4 {[%clk 0:04:16.2]} 13...
Nxc2 {[%clk 0:04:04.2]} 14. Rac1 {[%clk 0:04:14.8]} 14... Bf5 {[%clk 0:04:00.6]}
15. g4 {[%clk 0:04:09.1]} 15... Bg6 {[%clk 0:03:57.9]} 16. h4 {[%clk 0:04:04.6]}
16... h5 {[%clk 0:03:52.9]} 17. Nb5 {[%clk 0:03:59.7]} 17... O-O-O {[%clk
0:03:49.6]} 18. Nxa7+ {[%clk 0:03:52.1]} 18... Kb8 {[%clk 0:03:48.7]} 19. Nb5
{[%clk 0:03:51.3]} 19... hxg4 {[%clk 0:03:47.3]} 20. Bb3 {[%clk 0:03:49.9]}
20... Nd4 {[%clk 0:03:44.7]} 21. Nxc7 {[%clk 0:03:48.2]} 21... Nf3+ {[%clk
0:03:37.3]} 22. Kg2 {[%clk 0:03:32.9]} 22... Rxh4 {[%clk 0:03:36]} 23. Rh1
{[%clk 0:03:29.6]} 23... Rdh8 {[%clk 0:03:32]} 24. Nd5 {[%clk 0:03:22.1]} 24...
Be4 {[%clk 0:03:27.3]} 25. Rxh4 {[%clk 0:03:10.3]} 25... Rxh4 {[%clk 0:03:25.8]}
26. Kg3 {[%clk 0:03:06.3]} 26... Bxd5 {[%clk 0:03:20.1]} 27. Bxd5 {[%clk
0:03:04.3]} 27... Rh6 {[%clk 0:02:51.2]} 28. Bxf3 {[%clk 0:03:00.1]} 28... gxf3
{[%clk 0:02:50]} 29. Kxf3 {[%clk 0:03:00]} 29... Rh4 {[%clk 0:02:46.3]} 30. Rg1
{[%clk 0:02:56.8]} 30... g6 {[%clk 0:02:44.2]} 31. Ke3 {[%clk 0:02:54.9]} 31...
Rb4 {[%clk 0:02:42.2]} 32. b3 {[%clk 0:02:52.8]} 32... Kc7 {[%clk 0:02:40.5]}
33. Rc1+ {[%clk 0:02:50.8]} 33... Kd6 {[%clk 0:02:39.3]} 34. Rd1+ {[%clk
0:02:49.3]} 34... Ke6 {[%clk 0:02:36.9]} 35. Rc1 {[%clk 0:02:46.9]} 35... f5
{[%clk 0:02:33.3]} 36. Rc7 {[%clk 0:02:45.3]} 36... f4+ {[%clk 0:02:30.7]} 37.
Kf3 {[%clk 0:02:43.3]} 37... g5 {[%clk 0:02:17.4]} 38. Kg4 {[%clk 0:02:38.7]}
38... Kf6 {[%clk 0:02:13.7]} 39. Rc8 {[%clk 0:02:30.1]} 39... e4 {[%clk
0:02:04]} 40. Rf8+ {[%clk 0:02:27.1]} 40... Kg7 {[%clk 0:02:02.9]} 41. Re8
{[%clk 0:02:26.1]} 41... e3 {[%clk 0:01:51.8]} 42. fxe3 {[%clk 0:02:21.6]} 42...
fxe3+ {[%clk 0:01:50.8]} 43. Kxg5 {[%clk 0:02:19.9]} 43... Rb5+ {[%clk
0:01:49.8]} 44. Kf4 {[%clk 0:02:17.3]} 44... Ra5 {[%clk 0:01:45.8]} 45. a4
{[%clk 0:02:14.7]} 45... b5 {[%clk 0:01:40.3]} 46. axb5 {[%clk 0:02:10.2]} 46...
Rxb5 {[%clk 0:01:39.3]} 47. Rxe3 {[%clk 0:02:09.6]} 47... Rb6 {[%clk 0:01:37.8]}
48. Ke5 {[%clk 0:02:07.7]} 48... Kf7 {[%clk 0:01:36]} 49. Kd5 {[%clk 0:02:06.6]}
49... Kf8 {[%clk 0:01:34]} 50. Kc5 {[%clk 0:02:05.4]} 50... Rh6 {[%clk
0:01:32.6]} 51. b4 {[%clk 0:02:03.2]} 51... Rf6 {[%clk 0:01:29.5]} 52. b5 {[%clk
0:02:01.6]} 52... Rh6 {[%clk 0:01:28.4]} 53. b6 {[%clk 0:02:00.4]} 53... Rh1
{[%clk 0:01:23.9]} 54. Kc6 {[%clk 0:01:59.4]} 54... Rc1+ {[%clk 0:01:22.4]} 55.
Kb7 {[%clk 0:01:58.3]} 55... Kf7 {[%clk 0:01:18.9]} 56. Kb8 {[%clk 0:01:56.6]}
56... Rb1 {[%clk 0:01:10]} 57. b7 {[%clk 0:01:55.5]} 57... Kf6 {[%clk
0:01:07.8]} 58. Ra3 {[%clk 0:01:54]} 58... Ke7 {[%clk 0:01:01.3]} 59. Ka7 {[%clk
0:01:53.1]} 1-0

[Event "Live Chess"]
[Site "Chess.com"]
[Date "2024.06.02"]
[Round "-"]
[White "Ninifu"]
[Black "McFim"]
[Result "0-1"]
[WhiteElo "1995"]
[BlackElo "1721"]
[TimeControl "300"]
[EndTime "4:30:44 PDT"]
[Termination "McFim won on time"]

1. d4 {[%clk 0:04:55.6]} 1... d5 {[%clk 0:04:58.9]} 2. e4 {[%clk 0:04:51.9]}
2... dxe4 {[%clk 0:04:57.3]} 3. Nc3 {[%clk 0:04:51.3]} 3... Nf6 {[%clk
0:04:56.2]} 4. f3 {[%clk 0:04:50.6]} 4... exf3 {[%clk 0:04:55]} 5. Nxf3 {[%clk
0:04:49.9]} 5... Bf5 {[%clk 0:04:53.9]} 6. Ne5 {[%clk 0:04:48.4]} 6... c6 {[%clk
0:04:51.5]} 7. g4 {[%clk 0:04:44.8]} 7... Bg6 {[%clk 0:04:49]} 8. h4 {[%clk
0:04:44]} 8... Be4 {[%clk 0:04:45.1]} 9. Nxe4 {[%clk 0:04:34.3]} 9... Nxe4
{[%clk 0:04:43.5]} 10. Be3 {[%clk 0:04:02.3]} 10... Nd7 {[%clk 0:04:34.8]} 11.
Nxf7 {[%clk 0:03:38.9]} 11... Kxf7 {[%clk 0:04:32.6]} 12. Qf3+ {[%clk
0:03:29.7]} 12... Nef6 {[%clk 0:04:30.9]} 13. g5 {[%clk 0:03:27.3]} 13... Nb6
{[%clk 0:04:12]} 14. gxf6 {[%clk 0:03:19.6]} 14... exf6 {[%clk 0:04:03]} 15. Bd3
{[%clk 0:02:35.4]} 15... Qd5 {[%clk 0:03:45]} 16. Be4 {[%clk 0:02:33.9]} 16...
Qa5+ {[%clk 0:03:40.9]} 17. Bd2 {[%clk 0:02:22]} 17... Bb4 {[%clk 0:03:38.7]}
18. c3 {[%clk 0:02:19.7]} 18... Be7 {[%clk 0:03:34.4]} 19. a3 {[%clk 0:01:45.4]}
19... Nc4 {[%clk 0:03:15.4]} 20. Bf4 {[%clk 0:01:22.9]} 20... Nd6 {[%clk
0:03:02.1]} 21. b4 {[%clk 0:01:08.6]} 21... Qb5 {[%clk 0:02:53.9]} 22. Bd3
{[%clk 0:01:04.5]} 22... Qd5 {[%clk 0:02:51]} 23. Qxd5+ {[%clk 0:00:32.7]} 23...
cxd5 {[%clk 0:02:49.3]} 24. O-O-O {[%clk 0:00:29]} 24... Rac8 {[%clk 0:02:46.4]}
25. Kb2 {[%clk 0:00:27.5]} 25... Nc4+ {[%clk 0:02:41.7]} 26. Kb3 {[%clk
0:00:26.4]} 26... b5 {[%clk 0:02:39.3]} 27. Rhe1 {[%clk 0:00:25]} 27... Rhe8
{[%clk 0:02:37.2]} 28. Re2 {[%clk 0:00:23.4]} 28... a6 {[%clk 0:02:33.4]} 29.
Rde1 {[%clk 0:00:22.4]} 29... g6 {[%clk 0:02:29.2]} 30. h5 {[%clk 0:00:20.9]}
30... f5 {[%clk 0:01:07.4]} 31. hxg6+ {[%clk 0:00:18.7]} 31... hxg6 {[%clk
0:01:05.8]} 32. Rh1 {[%clk 0:00:17.8]} 32... Rh8 {[%clk 0:01:00.7]} 33. Reh2
{[%clk 0:00:17.1]} 33... Bf6 {[%clk 0:00:52.5]} 34. Be5 {[%clk 0:00:14.6]} 34...
Nxe5 {[%clk 0:00:47.7]} 35. dxe5 {[%clk 0:00:13.2]} 35... Bxe5 {[%clk
0:00:46.7]} 36. Rxh8 {[%clk 0:00:11.8]} 36... Bxh8 {[%clk 0:00:43.4]} 37. Rc1
{[%clk 0:00:07.6]} 37... Be5 {[%clk 0:00:37.6]} 38. Be2 {[%clk 0:00:06.6]} 38...
Kf6 {[%clk 0:00:27.7]} 39. Rc2 {[%clk 0:00:05.7]} 39... g5 {[%clk 0:00:25.5]}
40. Bf3 {[%clk 0:00:05.2]} 40... Ke6 {[%clk 0:00:23.3]} 41. Rd2 {[%clk
0:00:02.7]} 41... Rd8 {[%clk 0:00:21]} 42. Rh2 {[%clk 0:00:00.5]} 42... g4
{[%clk 0:00:18.7]} 0-1

[Event "Live Chess"]
[Site "Chess.com"]
[Date "2024.06.02"]
[Round "-"]
[White "MaksymYurii"]
[Black "NeilDruggan73"]
[Result "0-1"]
[WhiteElo "1005"]
[BlackElo "1698"]
[TimeControl "300"]
[EndTime "4:30:44 PDT"]
[Termination "NeilDruggan73 won on time"]

1. e4 {[%clk 0:04:57.5]} 1... d6 {[%clk 0:04:58.2]} 2. Nf3 {[%clk 0:04:56.7]}
2... Nf6 {[%clk 0:04:57.1]} 3. Bc4 {[%clk 0:04:54.2]} 3... g6 {[%clk 0:04:51.8]}
4. d4 {[%clk 0:04:43.6]} 4... Nxe4 {[%clk 0:04:49.8]} 5. O-O {[%clk 0:04:30.8]}
5... d5 {[%clk 0:04:48.6]} 6. Bb5+ {[%clk 0:04:25.1]} 6... c6 {[%clk 0:04:46.6]}
7. Ba4 {[%clk 0:04:23]} 7... Bg7 {[%clk 0:04:42.8]} 8. Bb3 {[%clk 0:04:19.3]}
8... O-O {[%clk 0:04:40.9]} 9. Re1 {[%clk 0:03:57.9]} 9... Bg4 {[%clk
0:04:31.5]} 10. Nc3 {[%clk 0:03:45.3]} 10... a5 {[%clk 0:04:28.5]} 11. Nxe4
{[%clk 0:03:42.4]} 11... dxe4 {[%clk 0:04:27.3]} 12. h3 {[%clk 0:03:38.6]} 12...
exf3 {[%clk 0:04:18.3]} 13. hxg4 {[%clk 0:03:35.1]} 13... fxg2 {[%clk
0:04:17.1]} 14. Kxg2 {[%clk 0:03:33.8]} 14... a4 {[%clk 0:04:16.2]} 15. Bc4
{[%clk 0:03:29.3]} 15... b5 {[%clk 0:04:15]} 16. Bd3 {[%clk 0:03:27.4]} 16...
Qxd4 {[%clk 0:04:13.4]} 17. f3 {[%clk 0:03:18.7]} 17... Nd7 {[%clk 0:04:11.5]}
18. Re4 {[%clk 0:03:04.4]} 18... Qd6 {[%clk 0:04:00]} 19. Bf4 {[%clk 0:02:57.9]}
19... e5 {[%clk 0:03:57.7]} 20. Bg3 {[%clk 0:02:48.4]} 20... Rad8 {[%clk
0:03:56.4]} 21. Rb1 {[%clk 0:02:39.9]} 21... Nc5 {[%clk 0:03:51.9]} 22. Re3
{[%clk 0:02:28.9]} 22... f6 {[%clk 0:03:45.1]} 23. g5 {[%clk 0:02:25.9]} 23...
f5 {[%clk 0:03:42.2]} 24. Qe2 {[%clk 0:02:16.6]} 24... f4 {[%clk 0:03:40.4]} 25.
Bxf4 {[%clk 0:02:07.7]} 25... exf4 {[%clk 0:03:38.9]} 26. Re4 {[%clk 0:02:05.5]}
26... Nxd3 {[%clk 0:03:36.1]} 27. cxd3 {[%clk 0:02:03.1]} 27... Qxd3 {[%clk
0:03:33.1]} 28. Re1 {[%clk 0:01:41.3]} 28... c5 {[%clk 0:03:19]} 29. Qxd3 {[%clk
0:01:23.6]} 29... Rxd3 {[%clk 0:03:16.3]} 30. b3 {[%clk 0:01:18.5]} 30... axb3
{[%clk 0:03:13.1]} 31. axb3 {[%clk 0:01:16.7]} 31... Rxb3 {[%clk 0:03:10.2]} 32.
Rc1 {[%clk 0:01:04.1]} 32... Bd4 {[%clk 0:03:08.1]} 33. Re7 {[%clk 0:00:53.4]}
33... c4 {[%clk 0:02:48.7]} 34. Rb7 {[%clk 0:00:49.5]} 34... Re8 {[%clk
0:02:34.9]} 35. Rd1 {[%clk 0:00:40.5]} 35... Rb2+ {[%clk 0:02:24.6]} 36. Kh3
{[%clk 0:00:37.3]} 36... Bh8 {[%clk 0:01:07]} 37. Rdd7 {[%clk 0:00:31.8]} 37...
c3 {[%clk 0:01:05.8]} 38. Rxh7 {[%clk 0:00:29.3]} 38... c2 {[%clk 0:01:03.4]}
39. Rhc7 {[%clk 0:00:23]} 39... b4 {[%clk 0:00:59.5]} 40. Rb6 {[%clk 0:00:19.1]}
40... b3 {[%clk 0:00:48.8]} 41. Rbc6 {[%clk 0:00:17.6]} 41... Rb1 {[%clk
0:00:41.3]} 42. Rxg6+ {[%clk 0:00:15.4]} 42... Kf8 {[%clk 0:00:39.1]} 43. Rh6
{[%clk 0:00:12.4]} 43... Bg7 {[%clk 0:00:35.9]} 44. Rxg7 {[%clk 0:00:08.6]}
44... Kxg7 {[%clk 0:00:34.4]} 45. Rh5 {[%clk 0:00:05.1]} 45... Rh8 {[%clk
0:00:30.8]} 46. Kg4 {[%clk 0:00:02.5]} 46... Rxh5 {[%clk 0:00:28.5]} 47. Kxh5
{[%clk 0:00:01.9]} 47... c1=Q {[%clk 0:00:26.9]} 48. g6 {[%clk 0:00:01]} 48...
Qh1+ {[%clk 0:00:21.1]} 49. Kg5 {[%clk 0:00:00.2]} 49... Rg1+ {[%clk 0:00:19.7]}
0-1

[Event "Live Chess"]
[Site "Chess.com"]
[Date "2024.06.02"]
[Round "-"]
[White "slava_ukr"]
[Black "ProfPoisson"]
[Result "0-1"]
[WhiteElo "2398"]
[BlackElo "1333"]
[TimeControl "300"]
[EndTime "4:31:03 PDT"]
[Termination "ProfPoisson won by resignation"]

1. e4 {[%clk 0:04:57.4]} 1... e5 {[%clk 0:04:57.6]} 2. d4 {[%clk 0:04:56.1]}
2... exd4 {[%clk 0:04:55.9]} 3. c3 {[%clk 0:04:55.4]} 3... dxc3 {[%clk
0:04:54.8]} 4. Bc4 {[%clk 0:04:54.4]} 4... cxb2 {[%clk 0:04:54.3]} 5. Bxb2
{[%clk 0:04:54.3]} 5... d5 {[%clk 0:04:51.7]} 6. Bxd5 {[%clk 0:04:53.5]} 6...
Nf6 {[%clk 0:04:50.4]} 7. Nc3 {[%clk 0:04:52.5]} 7... Bb4 {[%clk 0:04:45.6]} 8.
Qa4+ {[%clk 0:04:46.6]} 8... c6 {[%clk 0:04:30.7]} 9. Bxf7+ {[%clk 0:04:19.6]}
9... Kxf7 {[%clk 0:04:27.8]} 10. Qxb4 {[%clk 0:04:18.6]} 10... Qe7 {[%clk
0:04:14.1]} 11. Nf3 {[%clk 0:04:08]} 11... Qxb4 {[%clk 0:04:11.1]} 12. O-O
{[%clk 0:04:04.8]} 12... Qxb2 {[%clk 0:04:09.4]} 13. Rab1 {[%clk 0:04:03.7]}
13... Qxc3 {[%clk 0:04:07.7]} 0-1

[Event "Live Chess"]
[Site "Chess.com"]
[Date "2024.06.02"]
[Round "-"]
[White "JanMur7"]
[Black "JohanKjeldahl"]
[Result "1-0"]
[WhiteElo "2291"]
[BlackElo "1791"]
[TimeControl "300"]
[EndTime "4:31:08 PDT"]
[Termination "JanMur7 won by resignation"]

1. c4 {[%clk 0:04:59]} 1... e5 {[%clk 0:04:57.7]} 2. Nc3 {[%clk 0:04:58.4]} 2...
Nf6 {[%clk 0:04:55.9]} 3. Nf3 {[%clk 0:04:57.7]} 3... Nc6 {[%clk 0:04:53.6]} 4.
e4 {[%clk 0:04:55.6]} 4... Bc5 {[%clk 0:04:48.7]} 5. Nxe5 {[%clk 0:04:54.4]}
5... Bxf2+ {[%clk 0:04:45.2]} 6. Kxf2 {[%clk 0:04:54.3]} 6... Nxe5 {[%clk
0:04:43.7]} 7. d4 {[%clk 0:04:54.2]} 7... Neg4+ {[%clk 0:04:41.5]} 8. Ke1 {[%clk
0:04:53.6]} 8... d6 {[%clk 0:04:38.7]} 9. h3 {[%clk 0:04:51.7]} 9... Nh6 {[%clk
0:04:33.9]} 10. Bxh6 {[%clk 0:04:48.4]} 10... gxh6 {[%clk 0:04:32.8]} 11. Be2
{[%clk 0:04:44.5]} 11... Rg8 {[%clk 0:04:30.2]} 12. g4 {[%clk 0:04:41.7]} 12...
h5 {[%clk 0:04:22.9]} 13. e5 {[%clk 0:04:30.4]} 13... dxe5 {[%clk 0:04:18.2]}
14. dxe5 {[%clk 0:04:30.3]} 14... Nd7 {[%clk 0:04:02.2]} 15. e6 {[%clk
0:04:20.5]} 15... Qh4+ {[%clk 0:04:00]} 16. Kd2 {[%clk 0:04:15.1]} 16... fxe6
{[%clk 0:03:56.7]} 17. Nb5 {[%clk 0:04:13.3]} 17... Qg5+ {[%clk 0:03:50.2]} 18.
Kc2 {[%clk 0:04:10.7]} 18... Qc5 {[%clk 0:03:46.1]} 19. b4 {[%clk 0:04:07]}
19... Qxb4 {[%clk 0:03:31.9]} 20. Nxc7+ {[%clk 0:04:03.6]} 20... Ke7 {[%clk
0:03:29.1]} 21. Nxa8 {[%clk 0:03:49.5]} 21... b6 {[%clk 0:03:27.6]} 22. Qd3
{[%clk 0:03:07.1]} 22... Rg7 {[%clk 0:03:17.6]} 23. Nc7 {[%clk 0:02:51.2]} 23...
Bb7 {[%clk 0:03:15.9]} 24. Rhd1 {[%clk 0:02:43.4]} 24... Qa4+ {[%clk 0:03:06.6]}
25. Qb3 {[%clk 0:02:39.6]} 25... Be4+ {[%clk 0:02:59.8]} 26. Kb2 {[%clk
0:02:35.4]} 26... Qxb3+ {[%clk 0:02:57.1]} 27. axb3 {[%clk 0:02:29.9]} 27... a5
{[%clk 0:02:54.7]} 28. Rd4 {[%clk 0:02:25]} 28... Nc5 {[%clk 0:02:52.3]} 29.
Rad1 {[%clk 0:02:17]} 29... hxg4 {[%clk 0:02:46.9]} 30. Bxg4 {[%clk 0:02:14.5]}
30... h5 {[%clk 0:02:42.7]} 31. Bxe6 {[%clk 0:02:12.8]} 31... Rg2+ {[%clk
0:02:38.3]} 32. R1d2 {[%clk 0:02:07.4]} 32... Rxd2+ {[%clk 0:02:32]} 33. Rxd2
{[%clk 0:02:07.3]} 33... Nxe6 {[%clk 0:02:30.4]} 34. Nxe6 {[%clk 0:02:04.4]}
34... Kxe6 {[%clk 0:02:29.5]} 35. Kc3 {[%clk 0:02:03.7]} 35... Ke5 {[%clk
0:02:26.9]} 36. Rd8 {[%clk 0:01:56.8]} 36... h4 {[%clk 0:02:17.4]} 37. Rh8
{[%clk 0:01:54.4]} 1-0

[Event "Live Chess"]
[Site "Chess.com"]
[Date "2024.06.02"]
[Round "-"]
[White "road2gm5000"]
[Black "elephantgerrald"]
[Result "0-1"]
[WhiteElo "1087"]
[BlackElo "876"]
[TimeControl "300"]
[EndTime "4:31:36 PDT"]
[Termination "elephantgerrald won - game abandoned"]

1. e4 {[%clk 0:04:58.8]} 1... e5 {[%clk 0:04:56.4]} 2. Nf3 {[%clk 0:04:57.1]}
2... Nc6 {[%clk 0:04:53.3]} 3. Bb5 {[%clk 0:04:56.6]} 3... Nf6 {[%clk
0:04:46.8]} 4. Bxc6 {[%clk 0:04:55.4]} 4... bxc6 {[%clk 0:04:44.4]} 5. Nc3
{[%clk 0:04:55.3]} 5... Ba6 {[%clk 0:04:41.4]} 6. d3 {[%clk 0:04:52.6]} 6... Bd6
{[%clk 0:04:36.9]} 7. O-O {[%clk 0:04:51.1]} 7... O-O {[%clk 0:04:35.5]} 8. Re1
{[%clk 0:04:50.3]} 8... Bb4 {[%clk 0:03:55.9]} 9. Bd2 {[%clk 0:04:44.8]} 9...
Bxc3 {[%clk 0:03:52.8]} 10. Bxc3 {[%clk 0:04:44.7]} 10... Rb8 {[%clk 0:03:40.7]}
11. Bxe5 {[%clk 0:04:39.3]} 11... d6 {[%clk 0:03:25.8]} 12. Bd4 {[%clk
0:04:14.5]} 12... c5 {[%clk 0:03:11]} 13. Bc3 {[%clk 0:04:11.5]} 13... Re8
{[%clk 0:03:01.9]} 14. Qd2 {[%clk 0:04:07.4]} 14... h6 {[%clk 0:02:55.3]} 15. e5
{[%clk 0:04:06.2]} 15... dxe5 {[%clk 0:02:47.3]} 16. Rxe5 {[%clk 0:04:00.1]}
16... Rxe5 {[%clk 0:02:42.1]} 17. Nxe5 {[%clk 0:04:00]} 17... Qd6 {[%clk
0:02:31.8]} 18. Re1 {[%clk 0:03:46.8]} 18... Re8 {[%clk 0:02:17]} 19. h3 {[%clk
0:03:41.1]} 19... c4 {[%clk 0:02:10]} 20. Nxc4 {[%clk 0:03:25.3]} 20... Rxe1+
{[%clk 0:02:05.5]} 21. Qxe1 {[%clk 0:03:24]} 21... Bxc4 {[%clk 0:02:03.5]} 22.
dxc4 {[%clk 0:03:23.5]} 22... Kh7 {[%clk 0:01:40.3]} 23. Qe5 {[%clk 0:02:44.9]}
23... Qd1+ {[%clk 0:01:36.2]} 24. Qe1 {[%clk 0:02:38.6]} 24... Qxc2 {[%clk
0:01:34.1]} 25. Bxf6 {[%clk 0:02:35.1]} 25... gxf6 {[%clk 0:01:31.3]} 26. Qc3
{[%clk 0:02:33.6]} 26... Qd1+ {[%clk 0:01:26.9]} 27. Kh2 {[%clk 0:02:30.9]}
27... Qd6+ {[%clk 0:01:25.1]} 28. Qg3 {[%clk 0:02:27.6]} 28... Qb4 {[%clk
0:01:13.4]} 29. Qd3+ {[%clk 0:02:23.9]} 29... Kg7 {[%clk 0:01:09.8]} 30. Qc3
{[%clk 0:02:13]} 30... Qd6+ {[%clk 0:01:07.5]} 31. g3 {[%clk 0:02:12.5]} 31...
Qa6 {[%clk 0:00:50.1]} 32. a3 {[%clk 0:02:07.4]} 32... c5 {[%clk 0:00:44.7]} 33.
b4 {[%clk 0:02:03.4]} 33... Qc6 {[%clk 0:00:31.4]} 0-1

[Event "Live Chess"]
[Site "Chess.com"]
[Date "2024.06.02"]
[Round "-"]
[White "gunslinger222"]
[Black "KyryloPoluliakh"]
[Result "1-0"]
[WhiteElo "2262"]
[BlackElo "1527"]
[TimeControl "300"]
[EndTime "4:31:56 PDT"]
[Termination "gunslinger222 won by checkmate"]

1. d4 {[%clk 0:04:59.1]} 1... Nf6 {[%clk 0:04:55.3]} 2. c4 {[%clk 0:04:59]} 2...
g6 {[%clk 0:04:53.2]} 3. Nc3 {[%clk 0:04:58.2]} 3... Bg7 {[%clk 0:04:51.7]} 4.
e4 {[%clk 0:04:57.8]} 4... O-O {[%clk 0:04:50]} 5. Nge2 {[%clk 0:04:57.5]} 5...
d6 {[%clk 0:04:48.2]} 6. Ng3 {[%clk 0:04:56.7]} 6... Nc6 {[%clk 0:04:47.2]} 7.
Be2 {[%clk 0:04:51.7]} 7... e5 {[%clk 0:04:44.7]} 8. d5 {[%clk 0:04:50.7]} 8...
Ne7 {[%clk 0:04:42.5]} 9. h4 {[%clk 0:04:47.9]} 9... h5 {[%clk 0:04:38.9]} 10.
Bg5 {[%clk 0:04:46.4]} 10... Nh7 {[%clk 0:04:33.8]} 11. Bxh5 {[%clk 0:04:33.7]}
11... gxh5 {[%clk 0:04:31.9]} 12. Nxh5 {[%clk 0:04:33.1]} 12... Nxg5 {[%clk
0:04:23.8]} 13. hxg5 {[%clk 0:04:31.7]} 13... Ng6 {[%clk 0:04:21.9]} 14. Nxg7
{[%clk 0:04:30.3]} 14... Kxg7 {[%clk 0:04:19.3]} 15. Qd2 {[%clk 0:04:29.2]}
15... Nf4 {[%clk 0:04:13]} 16. g3 {[%clk 0:04:19.2]} 16... Ng6 {[%clk
0:04:09.6]} 17. O-O-O {[%clk 0:04:17.9]} 17... f6 {[%clk 0:04:01]} 18. f4 {[%clk
0:04:08.8]} 18... exf4 {[%clk 0:03:54.9]} 19. gxf4 {[%clk 0:04:07.6]} 19... f5
{[%clk 0:03:48.3]} 20. Qd4+ {[%clk 0:03:52.8]} 20... Kg8 {[%clk 0:03:44.3]} 21.
Rh6 {[%clk 0:03:51.5]} 21... Qe8 {[%clk 0:03:38]} 22. Rdh1 {[%clk 0:03:48.5]}
22... Bd7 {[%clk 0:03:19.6]} 23. Rh8+ {[%clk 0:03:46.8]} 23... Nxh8 {[%clk
0:03:02.1]} 24. Qxh8+ {[%clk 0:03:46.7]} 24... Kf7 {[%clk 0:02:59.1]} 25. Rh7+
{[%clk 0:03:46.6]} 25... Kg6 {[%clk 0:02:58.3]} 26. Qg7# {[%clk 0:03:46.5]} 1-0